[Event "98th Caplin Hastings Masters 2024-25"]
[Site "Hastings"]
[Date "2025.01.03"]
[Round "9.11"]
[White "Siva Mahadevan"]
[Black "Kolani, Arjun"]
[Result "1-0"]
[ECO "B10"]
[WhiteElo "2349"]
[BlackElo "2131"]
[Annotator "TA"]
[PlyCount "133"]
[EventDate "2024.12.23"]
[EventType "swiss"]
[EventCountry "ENG"]
[SourceTitle "playchess.com"]
[Source "ChessBase"]
[SourceQuality "1"]
[TimeControl "5400+30"]

{[%evp 59,133,-50,-52,-47,0,0,0,-29,-33,-28,0,0,0,0,0,-8,-7,-15,-8,-8,-8,-30,0,-14,-14,-100,-109,-100,-110,-541,-162,-160,-92,-77,-56,-45,0,0,0,-172,-50,-71,-12,-10,0,0,0,0,0,0,0,0,0,0,0,0,0,0,295,9,15,10,62,53,723,261,470,444,457,462,596,597,571,558,886,797]} 1. e4 {[%emt 0:00:04]} c6 {[%emt 0:00:08]} 2. d3 {[%emt 0:00:31]} d5 {[%emt 0:00:50]} 3. Nd2 {[%emt 0:00:07]} e5 {[%emt 0:02:56]} 4. Ngf3 {[%emt 0:00:08]} Bd6 {[%emt 0:01:46]} 5. d4 {[%emt 0:03:23]} exd4 {[%emt 0:08:49]} 6. exd5 {[%emt 0:00:15]} cxd5 {[%emt 0:09:59]} 7. Bb5+ {[%emt 0:01:50]} Bd7 {[%emt 0:03:43]} 8. Bxd7+ {[%emt 0:00:22]} Qxd7 {[%emt 0:00:31]} 9. Nxd4 {[%emt 0:00:41]} Nc6 {[%emt 0:07:03]} 10. N2f3 {[%emt 0:00:35]} Nf6 {[%emt 0:02:28]} 11. O-O {[%emt 0:00:51]} O-O {[%emt 0:01:19]} 12. h3 {[%emt 0:00:33]} Ne4 {[%emt 0:03:49]} 13. Be3 {[%emt 0:01:00]} Rad8 {[%emt 0:05:04]} 14. c3 {[%emt 0:00:36]} f5 {[%emt 0:04:35]} 15. Ne2 {[%emt 0:01:16]} Bb8 {[%emt 0:01:32]} 16. Bf4 {[%emt 0:06:05]} Bxf4 {[%emt 0:04:15]} 17. Nxf4 {[%emt 0:00:03]} Qf7 {[%emt 0:13:58]} 18. Nd4 {[%emt 0:02:40]} Rfe8 {[%emt 0:01:44]} 19. Re1 {[%emt 0:01:20]} g5 {[%emt 0:01:45]} 20. Nd3 {[%emt 0:01:41]} Qf6 {[%emt 0:00:55]} 21. Nxc6 {[%emt 0:16:38]} bxc6 {[%emt 0:00:19]} 22. Qf3 {[%emt 0:00:07]} Nd2 {[%emt 0:01:54]} 23. Qh5 {[%emt 0:01:32]} Re4 {[%emt 0:01:21]} 24. Rad1 {[%emt 0:02:04]} Nc4 {[%emt 0:01:37]} 25. b3 {[%emt 0:06:18]} Nd6 {[%emt 0:05:04]} 26. f3 {[%emt 0:01:54]} Rh4 {[%emt 0:02:16]} 27. Re6 {[%emt 0:00:06]} Qg7 {[%emt 0:00:42]} 28. Rxd6 {[%emt 0:00:09]} Rxd6 {[%emt 0:00:09]} 29. Qe8+ {[%emt 0:00:08]} Qf8 {[%emt 0:00:05]} 30. Qe3 {[%emt 0:00:05]} Rhh6 {[%emt 0:04:33]} 31. Qxg5+ {[%emt 0:00:54]} Rhg6 {[%emt 0:02:49]} (31... Rdg6 $6 32. Qe3 $11) (31... Qg7 $1 $15 {was preferable.} 32. Qxg7+ Kxg7) 32. Qe3 $11 {[%emt 0:00:09]} Rg7 {[%emt 0:06:12]} 33. Nf4 {[%emt 0:00:46]} Re7 {[%emt 0:00:45]} 34. Qc5 {[%emt 0:03:01]} Red7 {[%emt 0:00:15]} 35. b4 {[%emt 0:01:15]} Qe7 {[%emt 0:01:59]} 36. Kf2 {[%emt 0:02:22]} Qe5 {[%emt 0:00:47]} 37. Nd3 {[%emt 0:00:24]} Qf6 {[%emt 0:00:25]} 38. Re1 {[%emt 0:02:42]} Re6 {[%emt 0:00:37]} 39. Rxe6 {[%emt 0:02:05]} Qxe6 {[%emt 0:00:03]} 40. b5 {[%emt 0:00:10]} Rc7 {[%emt 0:00:48]} (40... cxb5 $2 41. Qc8+ Kf7 42. Nc5 $18 (42. Ne5+ Ke7 $18)) 41. a4 {[%emt 0:00:18]} Rc8 {[%emt 0:00:38]} 42. b6 {[%emt 0:01:48] [#]} (42. Qxa7 $11 cxb5 43. axb5 Rxc3 44. Qd4 Rc2+ (44... Rc4 45. Qa7 $11) 45. Kg1) 42... axb6 $1 $17 {[%emt 0:00:24]} 43. Qxb6 {[%emt 0:00:01]} Re8 {[%emt 0:00:31]} 44. Qd4 $2 {[%emt 0:43:33][%mdl 8192]} (44. Kg3 $17 {nothing else works.}) 44... Qe2+ $2 {[%emt 0:00:09]} (44... c5 45. Qxc5 Qe2+ 46. Kg3 Qxd3) 45. Kg3 $19 {[%emt 0:00:00]} Re7 {[%emt 0:00:54]} (45... Kf7 $142 46. Kh2 Qe3) 46. Kh2 $17 {[%emt 0:00:00]} Qe3 {[%emt 0:00:28]} 47. Qh4 $1 {[%emt 0:00:00]} Qe6 {[%emt 0:00:35]} (47... Re8 $5 48. Nf4 Qxc3 $11) 48. a5 {[%emt 0:00:00]} Qd6+ {[%emt 0:00:21]} 49. Nf4 $2 {[%emt 0:00:00] [#]} (49. f4 $11) 49... Rg7 {[%emt 0:00:24]} (49... h6 $1 $19 {aiming for ...Ra7.} 50. g3 c5) 50. Kh1 $1 $15 {[%emt 0:00:00]} Qe7 {[%emt 0:00:23]} (50... h6 $17) 51. Qf2 $1 $11 {[%emt 0:00:00]} Qa3 {[%emt 0:00:23]} 52. Nh5 {[%emt 0:00:00]} Rg6 {[%emt 0:00:54]} 53. Qe3 {[%emt 0:00:00]} Kf7 {[%emt 0:01:07]} (53... Qxa5 54. Qe8#) 54. Nf4 {[%emt 0:00:00]} Rf6 {[%emt 0:00:00]} 55. Qa7+ {[%emt 0:00:00]} Qe7 {[%emt 0:00:02]} 56. Qb8 {[%emt 0:00:00]} Qe8 {[%emt 0:00:49]} 57. Qb7+ {[%emt 0:00:00]} Kg8 {[%emt 0:00:19]} (57... Qe7 58. a6 Rd6 59. Qb8) 58. a6 {[%emt 0:00:00]} Qe1+ {[%emt 0:00:47]} 59. Kh2 {[%emt 0:00:00]} Qe5 $1 {[%emt 0:00:30]} 60. g3 {[%emt 0:00:00]} Rf7 {[%emt 0:00:20]} ({Black should try} 60... Qe8 $1 $11) 61. Qxc6 $14 {[%emt 0:00:00]} Rc7 $2 {[%emt 0:00:42][%mdl 8192]} (61... Qe1 $14) 62. Qb6 $2 {[%emt 0:00:00]} (62. Qxd5+ Qxd5 63. Nxd5 Ra7 $11) (62. Qa8+ Kf7 63. a7 (63. Qxd5+ Qxd5 64. Nxd5 Rc6 $11) (63. Nxd5 Qe2+ 64. Kg1 Rd7 $15) 63... Rxc3 64. Qb7+ (64. Qxd5+ Qxd5 65. Nxd5 Rc2+ 66. Kh1 Ra2 $11) 64... Rc7 65. a8=Q Rxb7 66. Qxb7+ Ke8 67. Qxd5 (67. Nxd5 Qe2+ 68. Kg1 Qe1+ 69. Kh2 Qf2+ 70. Kh1 Qe1+ 71. Kg2 Qe2+ 72. Kg1 Qe1+ 73. Kg2 Qe2+ 74. Kg1 $11) 67... Qb2+ 68. Ng2) 62... Qe7 $2 {[%emt 0:00:29]} (62... Rxc3 {is a better defense.} 63. h4 (63. Qd8+ Kf7 $11) 63... Rc2+ 64. Kh3 Rc8) 63. Qb8+ $18 {[%emt 0:00:00]} (63. Nxd5 Qe2+ 64. Kg1 Qd1+ (64... Qe1+ 65. Kg2 $11) 65. Kf2 Qd2+ 66. Kg1 Qd1+ 67. Kg2 Qd2+ 68. Kf1 Qd1+ 69. Kg2 Qd2+ 70. Kf1 Qd1+ 71. Kg2 $11) 63... Kf7 {[%emt 0:00:18]} 64. Qh8 {[%emt 0:00:00]} (64. Nxd5 Qe2+ 65. Kg1 Rd7 $11 (65... Qe1+ 66. Kg2 $17)) 64... d4 {[%emt 0:00:41]} 65. Qxh7+ {[%emt 0:00:00]} ({Weaker is} 65. cxd4 Rc2+ 66. Ng2 Rxg2+ 67. Kxg2 Qe2+ 68. Kg1 Qe1+ 69. Kg2 Qe2+ 70. Kg1 Qe1+ 71. Kh2 Qf2+ 72. Kh1 Qf1+ 73. Kh2 Qe2+ (73... Qf2+ 74. Kh1 $11) 74. Kg1 $11) 65... Ke8 {[%emt 0:00:11]} 66. Qh5+ {[%emt 0:00:00]} Qf7 {[%emt 0:00:46]} 67. Qh8+ {[%emt 0:00:00]} (67. cxd4 Qxh5 68. Nxh5 Kf7 $16) 1-0

[Event "98th Caplin Hastings Masters 2024-25"]
[Site "Hastings"]
[Date "2025.01.03"]
[Round "9.12"]
[White "Golding, Alex"]
[Black "Briem, Benedikt"]
[Result "1-0"]
[ECO "D02"]
[WhiteElo "2405"]
[BlackElo "2132"]
[Annotator "TA"]
[PlyCount "155"]
[EventDate "2024.12.23"]
[EventType "swiss"]
[EventCountry "ENG"]
[SourceTitle "playchess.com"]
[Source "ChessBase"]
[SourceQuality "1"]
[TimeControl "5400+30"]

{[%evp 28,155,47,25,59,51,120,135,152,151,146,152,138,163,216,216,347,167,161,156,150,152,148,143,142,155,152,143,157,166,169,164,191,183,179,192,195,188,211,195,275,264,241,196,272,266,299,277,350,335,370,381,441,432,511,530,638,650,772,711,696,533,740,730,790,749,1302,1156,1016,449,1408,1353,9476,12294,6103,5600,29973,29976,29976,29976,29979,29980,29980,29981,29981,29982,29988,29977,29977,29977,29976,29977,29977,29975,29975,29976,29976,29977,29977,29978,29977,29979,29979,29980,29981,29980,29984,29985,29985,29986,29986,29987,29991,29985,29992,29993,29993,592,29985,0,29993,29994,29994,29993,29993,29994,29994,29995,29995,5118]} 1. d4 {[%emt 0:00:02]} d5 {[%emt 0:07:21]} 2. Nf3 {[%emt 0:00:08]} Nf6 {[%emt 0:00:12]} 3. Bf4 {[%emt 0:00:57]} e6 {[%emt 0:00:03]} 4. e3 {[%emt 0:00:08]} Bd6 {[%emt 0:00:10]} 5. Bxd6 {[%emt 0:02:23]} Qxd6 {[%emt 0:05:19]} 6. Nbd2 {[%emt 0:00:06]} O-O {[%emt 0:00:31]} 7. Bd3 {[%emt 0:00:12]} c5 {[%emt 0:01:28]} 8. dxc5 {[%emt 0:00:07]} Qxc5 {[%emt 0:01:38]} 9. O-O {[%emt 0:00:06]} Nbd7 {[%emt 0:03:26]} 10. c4 {[%emt 0:00:57]} e5 {[%emt 0:09:39]} 11. cxd5 {[%emt 0:00:42]} Qxd5 {[%emt 0:04:11]} 12. Qc2 {[%emt 0:00:18]} Nc5 {[%emt 0:10:32]} 13. Bc4 {[%emt 0:00:07]} Qd6 {[%emt 0:00:10]} 14. Rfd1 {[%emt 0:00:46]} Qe7 {[%emt 0:00:52]} 15. Rac1 {[%emt 0:01:02]} b6 {[%emt 0:01:30]} 16. b4 {[%emt 0:03:15]} Ncd7 {[%emt 0:08:05]} (16... Nb7 $1 $14) 17. Ne4 $16 {[%emt 0:00:20]} Nxe4 {[%emt 0:12:08]} 18. Qxe4 {[%emt 0:00:04]} Rb8 {[%emt 0:00:23]} 19. Bb3 {[%emt 0:04:50]} Bb7 {[%emt 0:11:27]} 20. Qf5 {[%emt 0:00:07]} Nf6 {[%emt 0:02:00]} (20... Rbc8 $142) 21. Nxe5 $18 {[%emt 0:01:29]} g6 {[%emt 0:01:07]} (21... Rbe8) 22. Qg5 {[%emt 0:03:44]} (22. Rc7 $142 Qxc7 23. Qxf6) 22... Rbe8 $18 {[%emt 0:05:35]} 23. Nc6 {[%emt 0:00:37]} Bxc6 {[%emt 0:00:17]} 24. Rxc6 {[%emt 0:00:05]} Kg7 {[%emt 0:00:24]} 25. Rdd6 {[%emt 0:02:30]} Ne4 {[%emt 0:01:30]} 26. Qxe7 {[%emt 0:00:06]} Rxe7 {[%emt 0:00:03]} 27. Rd4 {[%emt 0:00:07]} Rb8 {[%emt 0:00:30]} 28. f3 {[%emt 0:00:51]} Nf6 {[%emt 0:00:16]} 29. e4 {[%emt 0:00:04]} Ne8 {[%emt 0:01:19]} 30. Kf2 {[%emt 0:00:35]} Nc7 {[%emt 0:00:07]} 31. a4 {[%emt 0:00:31]} Rb7 {[%emt 0:01:16]} 32. f4 {[%emt 0:00:22]} Ne8 {[%emt 0:01:20]} 33. Ke3 {[%emt 0:01:16]} Rbd7 {[%emt 0:00:58]} (33... Nf6 {might work better.} 34. h3 Rbd7) 34. Rxd7 $18 {[%emt 0:00:31]} Rxd7 {[%emt 0:00:02]} 35. a5 {[%emt 0:00:21]} bxa5 {[%emt 0:00:26]} (35... Rc7 $142 36. Rxc7 Nxc7) 36. bxa5 $18 {[%emt 0:00:05]} Nf6 {[%emt 0:00:12]} 37. h3 {[%emt 0:00:25]} Rb7 {[%emt 0:01:34]} 38. Bc4 {[%emt 0:00:06]} h5 {[%emt 0:01:02]} 39. e5 {[%emt 0:00:12]} Ng8 {[%emt 0:00:19]} 40. g4 {[%emt 0:01:04]} hxg4 {[%emt 0:00:22]} 41. hxg4 {[%emt 0:00:05]} Nh6 {[%emt 0:00:22]} 42. Kf3 {[%emt 0:00:41]} Re7 {[%emt 0:00:57]} 43. a6 {[%emt 0:00:14]} Rd7 {[%emt 0:00:10]} 44. e6 {[%emt 0:00:56]} fxe6 {[%emt 0:00:07]} 45. Bxe6 {[%emt 0:00:03]} ({Not} 45. Rxe6 g5 46. Re5 (46. fxg5 Nf7 $18) 46... gxf4 $18) 45... Re7 {[%emt 0:00:30]} 46. Bd5 {[%emt 0:00:23]} Nf7 {[%emt 0:00:49]} 47. Bxf7 {[%emt 0:02:14]} Kxf7 {[%emt 0:00:08]} 48. Kg3 {[%emt 0:00:21]} Rd7 {[%emt 0:00:43]} (48... g5 $142 49. fxg5 Re3+ 50. Kf4 Ra3 51. Rc7+ Kg6 52. Rxa7 Ra4+ 53. Ke5 Kxg5) 49. Kh4 $18 {[%emt 0:00:07]} Kg7 {[%emt 0:00:16]} 50. Kg5 {[%emt 0:00:05]} Rd5+ {[%emt 0:00:11]} 51. f5 {[%emt 0:00:04]} gxf5 {[%emt 0:00:33]} 52. Rc7+ {[%emt 0:00:03]} Kg8 {[%emt 0:00:41]} 53. gxf5 {[%emt 0:00:06]} Rd6 {[%emt 0:00:29]} 54. Rxa7 {[%emt 0:00:06]} Rb6 {[%emt 0:00:03]} 55. f6 {[%emt 0:00:30]} Rb1 {[%emt 0:00:21]} 56. Rg7+ {[%emt 0:00:22]} Kh8 {[%emt 0:00:05]} 57. a7 {[%emt 0:00:51]} Rg1+ {[%emt 0:01:43]} 58. Kh5 {[%emt 0:01:29]} Rh1+ {[%emt 0:00:30]} 59. Kg6 {[%emt 0:00:28]} Rh6+ {[%emt 0:00:15]} 60. Kg5 {[%emt 0:03:01]} Rh5+ {[%emt 0:00:38]} 61. Kg4 {[%emt 0:00:06]} Rh4+ {[%emt 0:00:11]} 62. Kf5 {[%emt 0:00:06]} Rf4+ {[%emt 0:00:06]} 63. Ke6 {[%emt 0:00:13]} Rxf6+ {[%emt 0:00:07]} 64. Ke5 {[%emt 0:00:03]} Kxg7 {[%emt 0:00:46]} 65. a8=Q {[%emt 0:00:05]} ({Worse is} 65. a8=B Re6+ 66. Kxe6 $11) 65... Rf7 {[%emt 0:00:47]} 66. Qe8 {[%emt 0:00:19]} Rf8 {[%emt 0:01:20]} 67. Qe7+ {[%emt 0:00:07]} Rf7 {[%emt 0:00:12]} 68. Qg5+ {[%emt 0:00:04]} Kh7 {[%emt 0:02:26]} 69. Ke6 {[%emt 0:00:10]} Rg7 {[%emt 0:01:25]} 70. Qh5+ {[%emt 0:00:07]} Kg8 {[%emt 0:00:05]} 71. Kf6 {[%emt 0:00:13]} Rg1 {[%emt 0:01:12]} 72. Qc5 {[%emt 0:02:35]} (72. Qd5+ $142 Kh7 73. Qe4+ Kg8 74. Qa8+ Kh7 75. Qa7+ Kg8 76. Qxg1+ Kf8 77. Qg7+ Ke8 78. Qe7#) 72... Rg7 $18 {[%emt 0:00:37]} 73. Qh5 {[%emt 0:05:25]} Rg1 $1 {[%emt 0:00:13]} 74. Qe8+ {[%emt 0:00:03]} Kh7 {[%emt 0:00:06]} 75. Qd7+ {[%emt 0:00:03]} Kg8 {[%emt 0:00:22]} 76. Qc8+ {[%emt 0:00:04]} Kh7 {[%emt 0:00:08]} 77. Qc7+ {[%emt 0:00:06]} Kg8 {[%emt 0:00:45]} 78. Qb8+ {[%emt 0:00:04]} 1-0

[Event "98th Caplin Hastings Masters 2024-25"]
[Site "Hastings"]
[Date "2025.01.03"]
[Round "9.13"]
[White "Boyer, Mahel"]
[Black "Zhang, Junyi"]
[Result "1-0"]
[ECO "C07"]
[WhiteElo "2526"]
[BlackElo "2070"]
[Annotator "TA"]
[PlyCount "69"]
[EventDate "2024.12.23"]
[EventType "swiss"]
[EventCountry "ENG"]
[SourceTitle "playchess.com"]
[Source "ChessBase"]
[SourceQuality "1"]
[TimeControl "5400+30"]

{[%evp 13,69,0,0,0,0,0,26,25,53,53,67,57,80,50,75,69,83,76,89,85,84,75,74,40,92,95,97,88,96,99,104,78,123,97,93,85,116,122,194,201,348,345,718,733,723,709,29983,29984,29983,4894,1602,1745,1899,1047,29949,29955,5840,5442]} 1. e4 {[%emt 0:03:01]} c5 {[%emt 0:00:00]} 2. Nf3 {[%emt 0:00:20]} e6 {[%emt 0:00:01]} 3. d4 {[%emt 0:00:35]} cxd4 {[%emt 0:00:04]} 4. Nxd4 {[%emt 0:00:05]} Nf6 {[%emt 0:00:18]} 5. Nd2 {[%emt 0:00:10]} d5 {[%emt 0:04:00]} 6. e5 {[%emt 0:02:50]} Nfd7 {[%emt 0:00:18]} 7. N2f3 {[%emt 0:00:11]} Nc6 {[%emt 0:00:22]} 8. Bf4 {[%emt 0:01:26]} Be7 {[%emt 0:02:34]} 9. c3 {[%emt 0:00:52]} Nxd4 {[%emt 0:08:10]} 10. cxd4 {[%emt 0:04:09]} Bb4+ {[%emt 0:00:41]} 11. Bd2 {[%emt 0:00:11]} Bxd2+ {[%emt 1:19:32]} 12. Qxd2 {[%emt 0:00:15]} O-O {[%emt 0:00:00]} 13. Be2 {[%emt 0:02:39]} f6 {[%emt 0:00:00]} 14. exf6 {[%emt 0:00:20]} Nxf6 {[%emt 0:00:00]} 15. O-O {[%emt 0:00:24]} Bd7 {[%emt 0:00:00]} 16. Rfe1 {[%emt 0:03:30][%cal Bf1e1,Be1e3,Be3h3][%mdl 32]} Rc8 {[%emt 0:00:00]} 17. Bd3 {[%emt 0:02:06] Prevents Ne4} Qb6 {[%emt 0:00:00]} 18. Re3 {[%emt 0:02:52]} Qd6 {[%emt 0:00:00]} (18... Ng4 $14) 19. Ne5 {[%emt 0:00:36]} Be8 {[%emt 0:00:00]} 20. Rae1 {[%emt 0:00:32]} (20. Rh3 Nh5 21. g4 Nf6 22. Qe3) 20... Rc7 {[%emt 0:00:00]} 21. a3 {[%emt 0:08:11]} Re7 {[%emt 0:00:00]} 22. Rh3 {[%emt 0:00:47]} g6 {[%emt 0:00:00]} 23. Rhe3 {[%emt 0:02:38] White has more active pieces.} (23. Qg5 {keeps more tension.} Rc7 24. Rf3 Qe7 25. g3) 23... Nd7 {[%emt 0:00:00]} 24. h4 {[%emt 0:02:44][%cal Bh2h4,Bh4h5,Bh5h6][%mdl 32]} Nxe5 {[%emt 0:00:00]} 25. Rxe5 {[%emt 0:00:14][%cal Oh4h5]} ({Don't take} 25. dxe5 Qd8 $14) 25... Qd7 {[%emt 0:00:00] Black is weak on the dark squares} (25... Qb6 $16 {was worth a try.}) 26. Qg5 $18 {[%emt 0:06:10]} Rff7 {[%emt 0:00:00]} (26... Qd8 $142 27. h5 (27. Rxe6 Rxe6 28. Rxe6 Qxg5 $18) 27... Rd7 28. hxg6 Bxg6 29. Bxg6 Qxg5 30. Rxg5 hxg6 31. Rxg6+ (31. Rxe6 Rf4 $18) 31... Kh8 32. Rgxe6 (32. Rexe6 Rf4 $18) 32... Rc7) 27. h5 {[%emt 0:01:50]} Rg7 $2 {[%emt 0:00:00]} (27... Rf8 28. h6 (28. hxg6 Bxg6 $18) 28... Qd8 29. Rxd5 (29. Rxe6 Rxe6 30. Qxd8 Rxe1+ 31. Kh2 Bc6 $18) 29... Bd7) 28. h6 {[%emt 0:00:09]} Rgf7 {[%emt 0:00:00] [#]} 29. Bf5 $1 {[%emt 0:00:07]} exf5 {[%emt 0:00:00]} (29... Rxf5 30. Rxf5) 30. Rxe7 {[%emt 0:00:04]} Rxe7 {[%emt 0:00:00]} 31. Qxe7 {[%emt 0:01:32]} (31. Rxe7 $142 Qc6 32. Re1 Qc7 33. Rxe8+ Kf7 34. Rh8 Ke6 35. Qe3+ Kd6 36. Qf4+ Kc6 37. Qxc7+ Kxc7 38. Rxh7+ Kc6 39. Re7 (39. Rg7 Kb5 40. b3 Ka6 41. h7 g5 42. h8=Q g4 43. Qh6+ Ka5 44. Rxb7 g3 45. Rxa7+ Kb5 46. Qa6#)) 31... Qxe7 {[%emt 0:00:00]} 32. Rxe7 {[%emt 0:00:04] KR-KB} Bc6 {[%emt 0:00:00]} 33. Rg7+ {[%emt 0:00:06]} Kh8 {[%emt 0:00:00]} 34. f4 {[%emt 0:00:16]} a6 {[%emt 0:00:00]} 35. Kf2 {[%emt 0:00:04]} 1-0

[Event "98th Caplin Hastings Masters 2024-25"]
[Site "Hastings"]
[Date "2025.01.03"]
[Round "9.14"]
[White "Nielsen, Andre"]
[Black "Rayner, Francis"]
[Result "1-0"]
[ECO "B44"]
[WhiteElo "2276"]
[BlackElo "2013"]
[Annotator "TA"]
[PlyCount "139"]
[EventDate "2024.12.23"]
[EventType "swiss"]
[EventCountry "ENG"]
[SourceTitle "playchess.com"]
[Source "ChessBase"]
[SourceQuality "1"]
[TimeControl "5400+30"]

{[%evp 9,139,20,23,0,14,4,16,10,14,7,12,4,13,9,17,26,22,12,22,22,14,15,31,25,48,41,48,38,51,22,75,50,45,51,53,42,52,38,100,100,114,93,100,84,100,84,100,100,100,89,94,88,103,88,89,82,84,83,175,175,175,175,177,177,177,177,177,177,189,177,177,177,177,174,174,174,174,159,159,159,159,110,103,127,127,127,123,0,0,0,0,0,0,0,226,145,226,226,295,295,295,295,397,295,279,226,226,214,660,660,636,589,487,279,279,226,279,226,818,818,1687,1620,1754,1428,5269,5197,5202,5222,4710,4338,1677,1618]} 1. e4 {[%emt 0:00:07]} c5 {[%emt 0:05:51]} 2. Nf3 {[%emt 0:00:41]} e6 {[%emt 0:03:26][%cal Be7e6,Be6e5][%mdl 32]} 3. d4 {[%emt 0:00:37]} cxd4 {[%emt 0:00:07]} 4. Nxd4 {[%emt 0:00:09]} Nc6 {[%emt 0:00:27]} 5. Bf4 {[%emt 0:02:53]} d6 {[%emt 0:04:04]} 6. Nxc6 {[%emt 0:00:21]} bxc6 {[%emt 0:00:01]} 7. c4 {[%emt 0:00:32]} e5 {[%emt 0:01:57]} 8. Bc1 {[%emt 0:00:26] The position is equal.} Nf6 {[%emt 0:00:47]} 9. Nc3 {[%emt 0:00:27]} Be7 {[%emt 0:00:50]} 10. Be2 {[%emt 0:00:40]} O-O {[%emt 0:01:47]} 11. O-O {[%emt 0:00:14]} Qc7 {[%emt 0:04:10]} 12. Be3 {[%emt 0:07:48]} Be6 {[%emt 0:01:34]} 13. Rc1 {[%emt 0:02:54][%cal Ba1c1,Bc1c2,Bc2d2,Bd2d3][%mdl 32]} Qb7 {[%emt 0:09:13]} 14. b3 {[%emt 0:24:54]} Rfd8 {[%emt 0:04:57]} 15. Bf3 {[%emt 0:01:30]} h6 {[%emt 0:05:07]} 16. Qe2 {[%emt 0:03:55]} Bf8 {[%emt 0:03:32]} 17. Rfd1 {[%emt 0:01:39]} Rac8 {[%emt 0:04:34]} 18. Rc2 {[%emt 0:03:20]} Nd7 {[%emt 0:12:21]} 19. Bg4 {[%emt 0:05:31]} Nc5 {[%emt 0:03:14]} (19... Nf6 $11 {remains equal.} 20. Bf3 (20. Bxe6 fxe6 21. Bc1 Re8 $11) 20... Rb8) 20. Bxc5 {[%emt 0:18:29]} Bxg4 {[%emt 0:00:25]} 21. Qxg4 {[%emt 0:00:11]} dxc5 {[%emt 0:00:08] Black is weak on the light squares} 22. Rcd2 {[%emt 0:00:40]} Rd4 {[%emt 0:08:40]} 23. Ne2 $36 {[%emt 0:24:02][%mdl 2048] White has some pressure.} Re8 {[%emt 0:02:43]} 24. Nxd4 $16 {[%emt 0:00:00]} cxd4 {[%emt 0:00:07]} 25. Rd3 {[%emt 0:00:00]} c5 {[%emt 0:02:07]} 26. g3 {[%emt 0:00:00]} Bd6 {[%emt 0:02:01]} 27. Re1 {[%emt 0:00:00]} Re6 {[%emt 0:01:32]} 28. Qe2 {[%emt 0:00:00]} a5 {[%emt 0:03:41]} 29. Qd2 {[%emt 0:00:00]} Bc7 {[%emt 0:00:49]} 30. f3 {[%emt 0:00:00]} Kh7 {[%emt 0:02:02]} 31. Qc1 {[%emt 0:00:00]} g6 {[%emt 0:00:38]} 32. Qa3 {[%emt 0:00:00]} Qc6 {[%emt 0:06:14]} 33. Qa4 {[%emt 0:00:00]} Kg7 {[%emt 0:01:24]} (33... Qd6 $16 {was worth a try.}) 34. Qxc6 $18 {[%emt 0:00:00]} Rxc6 {[%emt 0:00:01][%mdl 4096] Endgame. KRR-KRB} 35. Kf2 {[%emt 0:00:00]} Re6 {[%emt 0:02:38][%cal Bc6e6,Be6e8,Be8b8][%mdl 32]} 36. Rb1 {[%emt 0:00:00]} Bd6 {[%emt 0:00:35]} 37. Ke2 {[%emt 0:01:01]} Re8 {[%emt 0:00:57]} 38. Rd2 {[%emt 0:00:27]} Rb8 {[%emt 0:01:37]} 39. Rdb2 {[%emt 0:00:12]} Kf6 {[%emt 0:01:23]} 40. Kd3 {[%emt 0:00:16]} Ke6 {[%emt 0:00:10]} 41. Rf2 {[%emt 0:01:22]} g5 {[%emt 0:00:48]} 42. a3 {[%emt 0:01:38]} Rg8 {[%emt 0:01:06]} 43. g4 {[%emt 0:01:55]} Rb8 {[%emt 0:00:57]} 44. Rc2 {[%emt 0:01:13]} Be7 {[%emt 0:00:40] [#]} 45. b4 {[%emt 0:00:51]} cxb4 $16 {[%emt 0:00:30][%cal Bc5b4,Bb4b3][%mdl 32] ...b3 would now be deadly.} 46. c5 {[%emt 0:00:51]} b3 {[%emt 0:00:29]} 47. Rc4 {[%emt 0:00:12]} Kd7 {[%emt 0:00:34] [#]} 48. c6+ {[%emt 0:00:39]} (48. Ra4 $6 Rb5 $11) (48. Kd2 $1 $16) 48... Kc7 $11 {[%emt 0:00:03][%cal Ob8b5] And now ...Rb5! would win.} 49. Ra4 {[%emt 0:00:55]} Rb5 {[%emt 0:00:19]} 50. Kc4 {[%emt 0:00:56][%csl LRb3,LRb5] Dancing on a razor blade.} Kxc6 {[%emt 0:00:35]} 51. Rxb3 {[%emt 0:00:42]} Rc5+ {[%emt 0:01:15] White now steadily converts the win.} (51... Rxb3 $11 52. Kxb3 Kb5) 52. Kd3 $16 {[%emt 0:00:05] Strongly threatening Rc4.} Bd6 {[%emt 0:00:44]} (52... Rb5 $16 53. Rc4+ Rc5 54. Rxc5+ Bxc5) 53. Rc4 $18 {[%emt 0:00:41]} f6 {[%emt 0:00:24]} 54. Rxc5+ {[%emt 0:00:23]} Bxc5 {[%emt 0:00:10] KR-KB} 55. Kc4 {[%emt 0:00:11] Hoping for Rb5.} Bd6 {[%emt 0:00:42]} 56. h3 {[%emt 0:00:20]} a4 {[%emt 0:00:24]} 57. Rb5 {[%emt 0:00:30]} ({Don't do} 57. Rd3 Kb6 58. Rd1 (58. Kd5 Bf8 $11) 58... Be7 $18 (58... Bxa3 $2 {perishes.} 59. Ra1 $18)) 57... Bxa3 {[%emt 0:00:20]} 58. Ra5 {[%emt 0:00:08]} Bd6 $2 {[%emt 0:01:00]} (58... Bc1 59. Rxa4 Kb7) 59. Rxa4 {[%emt 0:00:19]} Be7 {[%emt 0:00:26]} 60. Ra8 {[%emt 0:00:32]} Kd6 {[%emt 0:00:29]} 61. Rh8 {[%emt 0:00:12]} (61. Ra6+ $142 Kc7 62. Kd5) 61... Ke6 {[%emt 0:00:09]} 62. Rxh6 {[%emt 0:00:07]} Bd8 {[%emt 0:00:32]} 63. Rh8 {[%emt 0:00:27]} Be7 $2 {[%emt 0:00:09]} (63... Ba5 64. Rb8 Bd2 65. Rb6+ Kf7) 64. Ra8 {[%emt 0:00:12] White is clearly winning.} Bd6 {[%emt 0:00:17]} 65. Ra6 {[%emt 0:00:09]} Ke7 {[%emt 0:00:38]} 66. Kd5 {[%emt 0:00:08] Ra7+ would kill now.} Bb4 {[%emt 0:00:36]} 67. Ra7+ {[%emt 0:00:12]} Kd8 {[%emt 0:00:33]} 68. Ke6 {[%emt 0:00:21]} Kc8 {[%emt 0:00:56]} 69. Rd7 {[%emt 0:00:23]} Bc3 {[%emt 0:00:22]} 70. Rd5 {[%emt 0:00:20] Weighted Error Value: White=0.12 (very precise) /Black=0.29 (precise) .  Mistake:       	White=2     	Black=7      Inaccurate:     	White=2     	Black=3      OK:         	White=15    	Black=21     Best:        	White=7     	Black=4} 1-0